fUST/lending_fUST_20240714
["ID","MTS","AMOUNT","RATE_DAILY","PERIOD"]
[332098262,1720960243637,-500.0,0.00024931,2]
[332098265,1720960243647,-500.0,0.00024931,2]
[332098267,1720960243656,-500.0,0.00024931,2]
[332098268,1720960243665,-500.0,0.00024931,2]
[332098271,1720960243675,-500.0,0.00024931,2]
[332098274,1720960243684,-500.0,0.00024931,2]
[332098276,1720960243693,-500.0,0.00024931,2]
[332098280,1720960243702,-500.0,0.00024931,2]
[332098283,1720960243712,-1316.98,0.00024931,2]
[332098285,1720960243722,-500.0,0.00024931,2]
[332098288,1720960243731,-1500.0,0.00024931,2]
[332098291,1720960243741,-267.71285188,0.00024931,2]
[332098294,1720960243751,-500.0,0.00024931,2]
[332098297,1720960243761,-858.52,0.00024931,2]
[332098300,1720960243771,-500.0,0.00024931,2]
[332098302,1720960243780,-500.0,0.00024931,2]
[332098305,1720960243789,-500.0,0.00024931,2]
[332098307,1720960243799,-500.0,0.00024931,2]
[332098309,1720960243808,-500.0,0.00024931,2]
[332098311,1720960243817,-500.0,0.00024931,2]
[332098313,1720960243826,-500.0,0.00024931,2]
[332098315,1720960243836,-500.0,0.00024931,2]
[332098317,1720960243846,-500.0,0.00024931,2]
[332098319,1720960243856,-429.16481685,0.00024931,2]
[332098321,1720960243864,-747.34,0.00024931,2]
[332098323,1720960243874,-500.0,0.00024931,2]
[332098325,1720960243883,-150.112233,0.00025,4]
[332098327,1720960243892,-1853.17476112,0.00025,2]
[332098329,1720960243901,-811.42567923,0.00025028,2]
[332098331,1720960243910,-1699.44791017,0.00025096,3]
[332098333,1720960243919,-19263.35118007,0.00025106,2]
[332098335,1720960243929,-154.55950541,0.0002511,2]
[332098337,1720960243939,-156.00154779,0.0002512,2]
[332098339,1720960243948,-177.26682605,0.00025156,2]
[332098341,1720960243959,-260.62534725,0.00025168,2]
[332098343,1720960243968,-1699.44791017,0.00025195,3]
[332098345,1720960243976,-4810.3332924,0.000252,2]
[332098347,1720960243986,-2001.92285393,0.000252,7]
[332098349,1720960243995,-500.0,0.00025204,2]
[332098351,1720960244004,-287.14415021,0.00025204,2]
[332098352,1720960244014,-154.55950541,0.00025204,2]
[332098353,1720960244023,-154.96683818,0.00025204,2]
[332098354,1720960244032,-191.27347695,0.00025204,2]
[332098355,1720960244041,-500.0,0.00025205,2]
[332098356,1720960244051,-710.69,0.00025205,2]
[332098357,1720960244061,-500.0,0.00025205,2]
[332098358,1720960244070,-500.0,0.00025205,2]
[332098359,1720960244079,-315.60048944,0.00025205,2]
[332098360,1720960244088,-500.0,0.00025205,2]
[332098361,1720960244097,-506.98,0.00025205,2]
[332098362,1720960244107,-500.0,0.00025205,2]
[332098363,1720960244116,-500.0,0.00025205,2]
[332098364,1720960244126,-500.0,0.00025205,2]
[332098365,1720960244135,-500.0,0.00025205,2]
[332098366,1720960244145,-252.96943693,0.00025205,2]
[332098367,1720960244154,-500.0,0.00025205,2]
[332098368,1720960244164,-500.0,0.00025205,2]
[332098369,1720960244173,-487.06685843,0.00025205,2]
[332098370,1720960244184,-500.0,0.00025205,2]
[332098371,1720960244194,-500.0,0.00025205,2]
[332098372,1720960244203,-500.0,0.00025205,2]
[332098373,1720960244213,-500.0,0.00025205,2]
[332098374,1720960244222,-500.0,0.00025205,2]
[332098375,1720960244231,-500.0,0.00025205,2]
[332098376,1720960244240,-500.0,0.00025205,2]
[332098378,1720960244249,-500.0,0.00025205,2]
[332098380,1720960244258,-630.6,0.00025205,2]
[332098382,1720960244268,-500.0,0.00025205,2]
[332098384,1720960244278,-500.0,0.00025205,4]
[332098386,1720960244288,-332.28812319,0.00025205,2]
[332098387,1720960244299,-500.0,0.00025205,2]
[332098388,1720960244310,-500.0,0.00025205,2]
[332098389,1720960244319,-260.12514962,0.00025205,2]
[332098390,1720960244329,-500.0,0.00025205,2]
[332098391,1720960244339,-500.0,0.00025205,2]
[332098392,1720960244347,-500.0,0.00025205,2]
[332098393,1720960244357,-500.0,0.00025205,2]
[332098394,1720960244367,-500.0,0.00025205,2]
[332098395,1720960244376,-500.0,0.00025205,2]
[332098396,1720960244385,-474.29182579,0.00025205,2]
[332098397,1720960244395,-1633.85519189,0.00025205,2]
[332098419,1720960244675,-500.0,0.00024657,2]
[332098420,1720960244684,-726.99,0.00024657,2]
[332098421,1720960244694,-362.81122337,0.00024657,2]
[332098422,1720960244713,-58.81228354,0.00024657,2]
[332098423,1720960244723,-500.0,0.00024657,2]
[332098424,1720960244733,-500.0,0.00024931,2]
[332098425,1720960244743,-726.99,0.00024931,2]
[332098426,1720960244753,-500.0,0.00024931,2]
[332098427,1720960244763,-500.0,0.00025205,2]
[332098428,1720960244773,-1054.88,0.00025205,2]
[332098429,1720960244782,-500.0,0.00025205,2]
[332098430,1720960244792,-500.0,0.00025205,2]
[332098431,1720960244802,-500.0,0.00025205,2]
[332098432,1720960244898,-500.0,0.00025205,2]
[332098433,1720960244910,-500.0,0.00025205,2]
[332098434,1720960244921,-500.0,0.00025205,2]
[332098436,1720960244932,-500.0,0.00025205,2]
[332098438,1720960244942,-500.0,0.00025205,2]
[332098440,1720960244952,-221.08492536,0.00025205,2]
[332098441,1720960244962,-500.0,0.00025205,2]
[332098443,1720960244972,-500.0,0.00025205,2]
[332098445,1720960244982,-509.00051779,0.00025205,2]
[332098447,1720960244991,-500.0,0.00025205,2]
[332098449,1720960245002,-500.0,0.00025205,2]
[332098451,1720960245011,-500.0,0.00025205,2]
[332098452,1720960245021,-500.0,0.00025205,2]
[332098453,1720960245030,-9010.3,0.00025205,2]
[332098454,1720960245040,-500.0,0.00025205,2]
[332098455,1720960245050,-500.0,0.00025205,2]
[332098456,1720960245060,-500.0,0.00025205,2]
[332098457,1720960245071,-500.0,0.00025205,2]
[332098458,1720960245081,-500.0,0.00025205,2]
[332098459,1720960245092,-500.0,0.00025205,2]
[332098460,1720960245103,-500.0,0.00025205,2]
[332098461,1720960245119,-1316.98,0.00025205,2]
[332098462,1720960245130,-630.07583035,0.00025205,2]
[332098463,1720960245141,-1500.0,0.00025205,2]
[332098464,1720960245151,-500.0,0.00025205,2]
[332098465,1720960245161,-858.52,0.00025205,2]
[332098466,1720960245171,-500.0,0.00025205,2]
[332098467,1720960245182,-500.0,0.00025205,2]
[332098468,1720960245193,-500.0,0.00025205,2]
[332098469,1720960245203,-500.0,0.00025205,2]
[332098470,1720960245213,-500.0,0.00025205,2]
[332098471,1720960245222,-747.34,0.00025205,2]
[332098472,1720960245231,-500.0,0.00025205,2]
[332098473,1720960245242,-726.99,0.00025205,2]
[332098474,1720960245252,-500.0,0.00025205,2]
[332098475,1720960245262,-150.0,0.000254,2]
[332098476,1720960245272,-156.00154779,0.00025401,2]
[332098477,1720960245281,-500.0,0.00025479,2]
[332098478,1720960245292,-710.69,0.00025479,2]
[332098479,1720960245301,-500.0,0.00025479,2]
[332098480,1720960245311,-500.0,0.00025479,2]
[332098481,1720960245321,-506.98,0.00025479,2]
[332098482,1720960245330,-500.0,0.00025479,2]
[332098483,1720960245339,-500.0,0.00025479,2]
[332098484,1720960245349,-500.0,0.00025479,2]
[332098485,1720960245359,-504.16,0.00025479,2]
[332098486,1720960245369,-500.0,0.00025479,2]
[332098487,1720960245378,-500.0,0.00025479,2]
[332098488,1720960245388,-246.10631948,0.00025479,2]
[332098489,1720960245397,-500.0,0.00025479,2]
[332098490,1720960245406,-500.0,0.00025479,2]
[332098491,1720960245415,-500.0,0.00025479,2]
[332098492,1720960245424,-500.0,0.00025479,4]
[332098493,1720960245433,-500.0,0.00025479,2]
[332098494,1720960245442,-315.1860659,0.00025479,2]
[332098495,1720960245451,-500.0,0.00025479,2]
[332098496,1720960245460,-607.19484177,0.00025479,2]
[332098497,1720960245471,-500.0,0.00025479,2]
[332098498,1720960245480,-1054.88,0.00025479,2]
[332098499,1720960245489,-500.0,0.00025479,2]
[332098500,1720960245498,-500.0,0.00025479,2]
[332098501,1720960245507,-500.0,0.00025479,2]
[332098502,1720960245517,-500.0,0.00025479,2]
[332098503,1720960245527,-500.0,0.00025479,2]
[332098504,1720960245538,-500.0,0.00025479,2]
[332098505,1720960245548,-643.09081186,0.00025479,2]
[332098506,1720960245560,-488.77528316,0.00025479,2]
[332098507,1720960245570,-500.0,0.00025479,2]
[332098508,1720960245580,-9010.3,0.00025479,2]
[332098509,1720960245589,-500.0,0.00025479,2]
[332098510,1720960245599,-500.0,0.00025479,2]
[332098511,1720960245609,-500.0,0.00025479,2]
[332098512,1720960245618,-500.0,0.00025479,2]
[332098513,1720960245629,-500.0,0.00025479,2]
[332098514,1720960245640,-1316.98,0.00025479,2]
[332098515,1720960245650,-1500.0,0.00025479,2]
[332098516,1720960245660,-500.0,0.00025479,2]
[332098517,1720960245669,-858.52,0.00025479,2]
[332098518,1720960245679,-500.0,0.00025479,2]
[332098519,1720960245688,-500.0,0.00025479,2]
[332098520,1720960245698,-624.23983785,0.00025479,2]
[332098521,1720960245707,-747.34,0.00025479,2]
[332098522,1720960245717,-726.99,0.00025479,2]
[332098523,1720960245726,-500.0,0.00025479,2]
[332098524,1720960245736,-1699.44791017,0.00025491,3]
[332098525,1720960245745,-4077.48092461,0.000255,5]
[332098526,1720960245755,-509119.48143505,0.000255,2]
[332098527,1720960245764,-151.0,0.000255,7]
[332098528,1720960245774,-151.0,0.000255,7]
[332098529,1720960245783,-151.0,0.000255,7]
[332098530,1720960245793,-473.783841,0.000255,7]
[332098531,1720960245802,-151.0,0.000255,7]
[332098532,1720960245813,-473.783841,0.000255,7]
[332098533,1720960245822,-618.428539,0.000255,7]
[332098534,1720960245831,-618.428539,0.000255,7]
[332098535,1720960245841,-151.0,0.000255,7]
[332098537,1720960245850,-240.335117,0.000255,7]
[332098538,1720960245861,-240.335117,0.000255,7]
[332098540,1720960245871,-30000.0,0.00025501,2]
[332098542,1720960245881,-304.6409205,0.00025501,2]
[332098544,1720960245890,-151.0,0.00025597,2]
[332098546,1720960245900,-1699.44791017,0.00025743,3]
[332098548,1720960245909,-163.46870761,0.00025752,2]
[332098549,1720960245919,-500.0,0.00025753,2]
[332098550,1720960245929,-710.69,0.00025753,2]
[332098551,1720960245938,-500.0,0.00025753,2]
[332098552,1720960245947,-500.0,0.00025753,2]
[332098555,1720960245957,-506.98,0.00025753,2]
[332098557,1720960245966,-500.0,0.00025753,2]
[332098559,1720960245976,-500.0,0.00025753,2]
[332098560,1720960245985,-500.0,0.00025753,2]
[332098561,1720960245995,-500.0,0.00025753,2]
[332098562,1720960246006,-500.0,0.00025753,2]
[332098563,1720960246018,-500.0,0.00025753,2]
[332098564,1720960246030,-553.31966395,0.00025753,2]
[332098565,1720960246041,-500.0,0.00025753,4]
[332098566,1720960246052,-500.0,0.00025753,2]
[332098567,1720960246062,-500.0,0.00025753,2]
[332098568,1720960246071,-500.0,0.00025753,2]
[332098571,1720960246080,-1054.88,0.00025753,2]
[332098573,1720960246090,-500.0,0.00025753,2]
[332098575,1720960246101,-591.63205234,0.00025753,2]
[332098577,1720960246112,-500.0,0.00025753,2]
[332098578,1720960246121,-500.0,0.00025753,2]
[332098579,1720960246132,-500.0,0.00025753,2]
[332098580,1720960246142,-500.0,0.00025753,2]
[332098581,1720960246151,-9010.3,0.00025753,2]
[332098582,1720960246161,-500.0,0.00025753,2]
[332098583,1720960246170,-500.0,0.00025753,2]
[332098584,1720960246179,-500.0,0.00025753,2]
[332098585,1720960246189,-500.0,0.00025753,2]
[332098586,1720960246199,-1316.98,0.00025753,2]
[332098587,1720960246208,-500.0,0.00025753,2]
[332098588,1720960246217,-858.52,0.00025753,2]
[332098589,1720960246227,-500.0,0.00025753,2]
[332098590,1720960246236,-747.34,0.00025753,2]
[332098591,1720960246245,-726.99,0.00025753,2]
[332098592,1720960246255,-208.08631229,0.00025869,2]
[332098593,1720960246264,-2930.80044754,0.00026,2]
[332098594,1720960246273,-500.0,0.00026027,2]
[332098595,1720960246283,-710.69,0.00026027,2]
[332098596,1720960246292,-500.0,0.00026027,2]
[332098597,1720960246302,-500.0,0.00026027,2]
[332098599,1720960246311,-506.98,0.00026027,2]
[332098601,1720960246320,-500.0,0.00026027,2]
[332098603,1720960246329,-500.0,0.00026027,2]
[332098605,1720960246338,-500.0,0.00026027,2]
[332098607,1720960246348,-646.42797551,0.00026027,2]
[332098609,1720960246358,-500.0,0.00026027,2]
[332098611,1720960246367,-648.55804055,0.00026027,2]
[332098613,1720960246376,-500.0,0.00026027,4]
[332098615,1720960246386,-500.0,0.00026027,2]
[332098617,1720960246395,-500.0,0.00026027,2]
[332098619,1720960246404,-500.0,0.00026027,2]
[332098621,1720960246414,-1054.88,0.00026027,2]
[332098623,1720960246423,-505.7,0.00026027,2]
[332098625,1720960246434,-500.0,0.00026027,2]
[332098627,1720960246444,-500.0,0.00026027,2]
[332098629,1720960246454,-9010.3,0.00026027,2]
[332098631,1720960246463,-500.0,0.00026027,2]
[332098633,1720960246472,-500.0,0.00026027,2]
[332098635,1720960246482,-500.0,0.00026027,2]
[332098637,1720960246492,-500.0,0.00026027,2]
[332098639,1720960246502,-1316.98,0.00026027,2]
[332098641,1720960246511,-500.0,0.00026027,2]
[332098643,1720960246520,-858.52,0.00026027,2]
[332098645,1720960246530,-500.0,0.00026027,2]
[332098647,1720960246539,-747.34,0.00026027,2]
[332098649,1720960246549,-151.0,0.00026079,2]
[332098651,1720960246563,-1699.44791017,0.00026291,3]
[332098653,1720960246572,-500.0,0.00026301,2]
[332098655,1720960246582,-710.69,0.00026301,2]
[332098656,1720960246592,-500.0,0.00026301,2]
[332098658,1720960246603,-500.0,0.00026301,2]
[332098659,1720960246613,-506.98,0.00026301,2]
[332098660,1720960246622,-500.0,0.00026301,2]
[332098661,1720960246634,-276.56657518,0.00026301,2]
[332098662,1720960246644,-500.0,0.00026301,2]
[332098663,1720960246654,-500.0,0.00026301,2]
[332098664,1720960246663,-500.0,0.00026301,4]
[332098665,1720960246672,-500.0,0.00026301,2]
[332098666,1720960246682,-500.0,0.00026301,2]
[332098667,1720960246692,-500.0,0.00026301,2]
[332098668,1720960246701,-1054.88,0.00026301,2]
[332098669,1720960246711,-500.0,0.00026301,2]
[332098670,1720960246720,-500.0,0.00026301,2]
[332098671,1720960246729,-1137.2679494,0.00026301,2]
[332098688,1720961008989,154.54409492,0.00014999,2]
[332098689,1720961063225,154.82988635,0.00014999,2]
[332098692,1720961229131,-554.76942265,0.00018,2]
[332098693,1720961231150,-250.0,0.00018,2]
[332098694,1720961237094,-637.12380136,0.00018,2]
[332098695,1720961237116,-283.11582146,0.00021095,2]
[332098696,1720961239096,-10.62329046,0.00021095,2]
[332098697,1720961239117,-256.91720836,0.00021095,2]
[332098698,1720961249103,-36.82190356,0.00021095,2]
[332098699,1720961249129,-703.95371,0.00021096,2]
[332098700,1720961249155,-282.040029,0.00021096,2]
[332098701,1720961249180,-175.5727653,0.00022236,2]
[332098702,1720961249204,-161.353371,0.00022667,2]
[332098703,1720961249230,-238.0,0.00022745,2]
[332098704,1720961249257,-1574.93703106,0.00022746,2]
[332098705,1720961249334,-1421.32287817,0.00022746,2]
[332098706,1720961250104,-490.04612053,0.00022746,2]
[332098712,1720961358118,-525.73842429,0.00016255,2]
[332098713,1720961358139,-150.0,0.00020646,2]
[332098714,1720961358159,-154.54409492,0.00022579,2]
[332098715,1720961358181,-166.06541357,0.00022746,2]
[332098716,1720961364079,-239.149694,0.00022746,2]
[332098717,1720961367085,-9960.36600539,0.00022746,2]
[332099103,1720961438527,-706.256025,0.00021096,2]
[332099104,1720961438537,-171.823894,0.00022499,2]
[332099105,1720961438546,-11048.11285728,0.00022746,2]
[332099106,1720961438556,-2652.6391176,0.00022746,2]
[332099107,1720961438566,-160.7662895,0.00022746,2]
[332099108,1720961438576,-428.71334484,0.00022746,2]
[332099109,1720961438585,-225.94652212,0.00022746,2]
[332099110,1720961438594,-249.5563831,0.00022903,2]
[332099111,1720961438604,-169.72486,0.00023101,2]
[332099112,1720961438614,-161.353371,0.00023848,2]
[332099113,1720961438623,-156.0015478,0.00024557,2]
[332099114,1720961438632,-496.39148657,0.00024557,2]
[332099115,1720961438644,-194.85154366,0.00024646,2]
[332099116,1720961438654,-22593.4926053,0.00024647,3]
[332099117,1720961438664,-521.7,0.00024657,2]
[332099118,1720961438673,-279.3196256,0.00024657,2]
[332099119,1720961438683,-500.0,0.00024657,2]
[332099120,1720961438692,-500.0,0.00024657,2]
[332099121,1720961438702,-500.0,0.00024657,2]
[332099122,1720961438711,-500.0,0.00024657,2]
[332099123,1720961438720,-500.0,0.00024657,2]
[332099124,1720961438731,-500.0,0.00024657,2]
[332099125,1720961438740,-500.0,0.00024657,2]
[332099126,1720961438749,-500.0,0.00024657,2]
[332099127,1720961438758,-500.0,0.00024657,2]
[332099128,1720961438767,-500.0,0.00024657,2]
[332099129,1720961438776,-500.0,0.00024657,2]
[332099130,1720961438785,-500.0,0.00024657,2]
[332099131,1720961438795,-555.50872868,0.00024657,2]
[332099132,1720961438805,-500.0,0.00024657,2]
[332099133,1720961438815,-500.0,0.00024657,2]
[332099134,1720961438824,-500.0,0.00024657,2]
[332099135,1720961438833,-500.0,0.00024657,2]
[332099136,1720961438843,-500.0,0.00024657,2]
[332099137,1720961438852,-500.0,0.00024657,2]
[332099138,1720961438861,-500.0,0.00024657,2]
[332099139,1720961438871,-500.0,0.00024657,2]
[332099140,1720961438881,-500.0,0.00024657,2]
[332099141,1720961438893,-500.0,0.00024657,2]
[332099142,1720961438903,-500.0,0.00024657,2]
[332099143,1720961438912,-570.92246406,0.00024657,2]
[332099144,1720961438923,-500.0,0.00024657,2]
[332099145,1720961438934,-534.96865554,0.00024657,2]
[332099146,1720961438944,-500.0,0.00024657,2]
[332099147,1720961438954,-500.0,0.00024657,2]
[332099148,1720961438964,-500.0,0.00024657,2]
[332099149,1720961438974,-500.0,0.00024657,2]
[332099150,1720961438983,-500.0,0.00024657,2]
[332099151,1720961438993,-500.0,0.00024657,2]
[332099152,1720961439005,-500.0,0.00024657,2]
[332099153,1720961439016,-500.0,0.00024657,2]
[332099154,1720961439025,-500.0,0.00024657,2]
[332099155,1720961439035,-500.0,0.00024657,2]
[332099156,1720961439044,-500.0,0.00024657,2]
[332099157,1720961439062,-500.0,0.00024657,2]
[332099158,1720961439074,-500.0,0.00024657,2]
[332099159,1720961439085,-500.0,0.00024657,2]
[332099160,1720961439097,-500.0,0.00024657,2]
[332099161,1720961439108,-500.0,0.00024657,2]
[332099162,1720961439118,-500.0,0.00024657,2]
[332099163,1720961439128,-500.0,0.00024657,2]
[332099164,1720961439140,-500.0,0.00024657,4]
[332099165,1720961439150,-500.0,0.00024657,2]
[332099166,1720961439161,-500.0,0.00024657,2]
[332099167,1720961439171,-503.38961662,0.00024657,2]
[332099168,1720961439180,-500.0,0.00024657,2]
[332099169,1720961439190,-500.0,0.00024657,2]
[332099170,1720961439200,-500.0,0.00024657,2]
[332099171,1720961439211,-500.0,0.00024657,2]
[332099172,1720961439220,-500.0,0.00024657,2]
[332099173,1720961439230,-500.0,0.00024657,2]
[332099174,1720961439239,-500.0,0.00024657,2]
[332099175,1720961439249,-500.0,0.00024657,2]
[332099176,1720961439259,-500.0,0.00024657,2]
[332099177,1720961439269,-500.0,0.00024657,2]
[332099178,1720961439279,-500.0,0.00024657,2]
[332099179,1720961439290,-500.0,0.00024657,2]
[332099180,1720961439303,-500.0,0.00024657,2]
[332099181,1720961439313,-500.0,0.00024657,2]
[332099182,1720961439323,-500.0,0.00024657,2]
[332099183,1720961439332,-500.0,0.00024657,2]
[332099184,1720961439341,-500.0,0.00024657,2]
[332099185,1720961439352,-500.0,0.00024657,2]
[332099186,1720961439363,-500.0,0.00024657,2]
[332099187,1720961439372,-500.0,0.00024657,2]
[332099188,1720961439383,-500.0,0.00024657,2]
[332099189,1720961439395,-500.0,0.00024657,2]
[332099190,1720961439405,-500.0,0.00024657,2]
[332099191,1720961439415,-500.0,0.00024657,2]
[332099192,1720961439425,-500.0,0.00024657,2]
[332099193,1720961439435,-500.0,0.00024657,2]
[332099194,1720961439445,-500.0,0.00024657,2]
[332099195,1720961439455,-513.66807977,0.00024657,2]
[332099196,1720961439465,-500.0,0.00024657,2]
[332099197,1720961439475,-500.0,0.00024657,2]
[332099198,1720961439485,-500.0,0.00024657,2]
[332099199,1720961439495,-500.0,0.00024657,2]
[332099200,1720961439505,-500.0,0.00024657,2]
[332099201,1720961439514,-163.46870761,0.00024657,2]
[332099202,1720961439525,-500.0,0.00024657,2]
[332099203,1720961439536,-500.0,0.00024657,2]
[332099204,1720961439546,-509.73621863,0.00024657,2]
[332099205,1720961439556,-500.0,0.00024657,2]
[332099206,1720961439566,-500.0,0.00024657,2]
[332099207,1720961439575,-503.31165592,0.00024657,2]
[332099208,1720961439586,-500.0,0.00024657,2]
[332099209,1720961439597,-500.0,0.00024657,2]
[332099210,1720961439608,-538.30607871,0.00024657,2]
[332099211,1720961439619,-500.0,0.00024657,2]
[332099212,1720961439629,-500.0,0.00024657,2]
[332099213,1720961439642,-500.0,0.00024657,2]
[332099214,1720961439651,-500.0,0.00024657,2]
[332099215,1720961439661,-500.0,0.00024657,2]
[332099216,1720961439670,-500.0,0.00024657,2]
[332099217,1720961439680,-500.0,0.00024657,2]
[332099218,1720961439690,-500.0,0.00024657,2]
[332099219,1720961439699,-500.0,0.00024657,2]
[332099220,1720961439709,-500.0,0.00024657,2]
[332099221,1720961439719,-500.0,0.00024657,2]
[332099222,1720961439730,-500.0,0.00024657,2]
[332099223,1720961439739,-500.0,0.00024657,2]
[332099224,1720961439749,-500.0,0.00024657,2]
[332099225,1720961439760,-500.0,0.00024657,2]
[332099226,1720961439770,-500.0,0.00024657,2]
[332099227,1720961439780,-500.0,0.00024657,2]
[332099228,1720961439790,-500.0,0.00024657,2]
[332099229,1720961439799,-500.0,0.00024657,2]
[332099230,1720961439809,-500.0,0.00024657,2]
[332099231,1720961439819,-500.0,0.00024657,2]
[332099232,1720961439829,-500.0,0.00024657,2]
[332099233,1720961439839,-500.0,0.00024657,2]
[332099234,1720961439848,-500.0,0.00024657,2]
[332099235,1720961439858,-500.0,0.00024657,2]
[332099236,1720961439868,-500.0,0.00024657,2]
[332099237,1720961439879,-500.0,0.00024657,2]
[332099238,1720961439893,-333.51595673,0.00024657,2]
[332099239,1720961439902,-500.0,0.00024657,2]
[332099240,1720961439912,-500.0,0.00024657,2]
[332099241,1720961439928,-500.0,0.00024657,2]
[332099242,1720961439938,-305.02786816,0.00024657,2]
[332099243,1720961439948,-500.0,0.00024657,2]
[332099244,1720961439958,-500.0,0.00024657,2]
[332099245,1720961439968,-500.0,0.00024657,2]
[332099246,1720961439978,-500.0,0.00024657,2]
[332099247,1720961439989,-500.0,0.00024657,2]
[332099248,1720961439999,-500.0,0.00024657,2]
[332099249,1720961440010,-500.0,0.00024657,2]
[332099250,1720961440020,-500.0,0.00024657,2]
[332099251,1720961440030,-500.0,0.00024657,2]
[332099252,1720961440040,-500.0,0.00024657,2]
[332099253,1720961440050,-500.0,0.00024657,2]
[332099254,1720961440060,-503.22354975,0.00024657,2]
[332099255,1720961440069,-500.0,0.00024657,2]
[332099256,1720961440078,-500.0,0.00024657,2]
[332099257,1720961440089,-500.0,0.00024657,2]
[332099258,1720961440099,-500.0,0.00024657,2]
[332099259,1720961440110,-500.0,0.00024657,2]
[332099260,1720961440120,-500.0,0.00024657,2]
[332099261,1720961440131,-500.0,0.00024657,2]
[332099262,1720961440140,-500.0,0.00024657,2]
[332099263,1720961440151,-500.0,0.00024657,2]
[332099264,1720961440161,-500.0,0.00024657,2]
[332099265,1720961440172,-500.0,0.00024657,2]
[332099266,1720961440182,-500.0,0.00024657,2]
[332099268,1720961440192,-500.0,0.00024657,2]
[332099270,1720961440202,-500.0,0.00024657,2]
[332099271,1720961440211,-500.0,0.00024657,2]
[332099272,1720961440221,-500.0,0.00024657,2]
[332099273,1720961440230,-500.0,0.00024657,2]
[332099274,1720961440240,-500.0,0.00024657,2]
[332099275,1720961440250,-500.0,0.00024657,2]
[332099276,1720961440260,-500.0,0.00024657,2]
[332099278,1720961440270,-500.0,0.00024657,2]
[332099280,1720961440279,-569.98932679,0.00024657,2]
[332099282,1720961440289,-500.0,0.00024657,2]
[332099284,1720961440298,-500.0,0.00024657,2]
[332099286,1720961440308,-500.0,0.00024657,2]
[332099298,1720961440421,-500.0,0.00024657,2]
[332099300,1720961440431,-500.0,0.00024657,2]
[332099302,1720961440441,-500.0,0.00024657,2]
[332099304,1720961440450,-500.0,0.00024657,2]
[332099306,1720961440460,-500.0,0.00024657,2]
[332099308,1720961440469,-500.0,0.00024657,2]
[332099310,1720961440478,-633.69358454,0.00024657,2]
[332099312,1720961440488,-500.0,0.00024657,2]
[332099314,1720961440498,-500.0,0.00024657,2]
[332099315,1720961440507,-500.0,0.00024657,2]
[332099318,1720961440517,-500.0,0.00024657,2]
[332099320,1720961440526,-500.0,0.00024657,2]
[332099322,1720961440536,-500.0,0.00024657,2]
[332099324,1720961440546,-500.0,0.00024657,2]
[332099326,1720961440555,-500.0,0.00024657,2]
[332099328,1720961440565,-500.0,0.00024657,2]
[332099330,1720961440575,-500.0,0.00024657,2]
[332099332,1720961440585,-500.0,0.00024657,2]
[332099334,1720961440595,-406.03745896,0.00024657,2]